bitfinex/quotes_ETHUSD_20240924
["timestamp","ask_amount","ask_price","bid_price","bid_amount"]
[1727185360330,0.038,2641.0,2640.9,6.53540906]
[1727185361403,0.038,2641.0,2640.9,5.57340906]
[1727185361591,0.038,2641.0,2640.9,6.07340906]
[1727185365627,0.038,2641.0,2640.9,6.57340906]
[1727185365829,0.038,2641.0,2640.9,9.57340906]
[1727185366740,0.038,2641.0,2640.9,13.44186118]
[1727185366978,0.790178,2642.1,2641.9,0.7849]
[1727185367428,0.790178,2642.1,2642.0,0.03852767]
[1727185368463,4.574908,2642.2,2642.0,0.03852767]
[1727185368771,4.66953288,2642.2,2642.0,0.03852767]
[1727185369097,5.125038,2642.1,2641.6,4.57039]
[1727185369583,5.125038,2642.1,2641.7,0.03842564]
[1727185370131,0.55,2641.9,2641.7,0.03842564]
[1727185370938,4.42985738,2641.9,2641.7,0.03842564]
[1727185371140,0.55,2641.8,2641.7,0.03842564]
[1727185371364,0.55,2641.8,2641.4,4.57075]
[1727185371582,0.55,2641.9,2641.7,0.03801228]
[1727185371745,0.55,2641.9,2641.4,5.406429]
[1727185371746,0.55,2641.9,2641.6,3.78555]
[1727185372071,4.33515,2641.9,2641.8,0.03801228]
[1727185372247,4.33515,2641.9,2641.5,3.78572]
[1727185372774,4.33515,2641.9,2641.6,0.03801228]
[1727185372975,4.33515,2641.9,2641.4,4.57074]
[1727185373193,4.33515,2641.9,2641.7,0.03801228]
[1727185373477,4.33515,2641.9,2641.4,0.7849]
[1727185373478,0.55,2641.9,2641.5,3.78571]
[1727185373853,0.55,2641.9,2641.6,0.03801228]
[1727185374355,0.55,2642.0,2641.6,0.03801228]
[1727185374688,0.55,2641.8,2641.4,0.7849]
[1727185374852,0.55,2641.8,2641.4,4.57075]
[1727185375383,4.33502,2642.0,2641.5,3.82366228]
[1727185375592,0.790178,2642.1,2641.6,3.78557]
[1727185375801,3.78474,2642.2,2641.8,3.78529]
[1727185375802,4.574918,2642.2,2641.8,3.78529]
[1727185376382,4.574918,2642.2,2641.9,0.03802248]
[1727185376542,4.574918,2642.2,2641.7,3.7854]
[1727185376740,4.574918,2642.2,2642.0,0.03802248]
[1727185376972,4.574918,2642.2,2641.7,3.7854]
[1727185376973,0.55,2642.1,2641.7,3.7854]
[1727185377691,0.55,2642.1,2641.6,4.32641812]
[1727185377692,0.790178,2642.4,2642.0,3.78493]
[1727185377843,0.55,2642.4,2642.0,3.78492]
[1727185378186,3.78439,2642.5,2642.0,3.82292]
[1727185379343,0.55,2642.5,2642.1,3.78482]
[1727185379582,0.55,2642.5,2642.0,7.60785]
[1727185379745,0.55,2642.5,2642.0,3.82292]
[1727185379958,4.33441,2642.5,2642.0,3.82292]
[1727185380287,3.78444,2642.4,2642.0,0.038]
[1727185380494,0.55,2642.3,2642.0,0.038]
[1727185382159,3.78485,2642.2,2642.0,0.038]
[1727185382374,0.55,2642.1,2642.0,0.038]
[1727185382903,4.33486,2642.1,2642.0,0.038]
[1727185383051,5.15006,2642.1,2642.0,0.038]
[1727185383415,6.04355,2642.1,2642.0,0.038]
[1727185383697,6.13818851,2642.1,2642.0,0.038]
[1727185383898,10.32146439,2642.1,2642.0,0.038]
[1727185384099,10.22682588,2642.1,2642.0,0.038]
[1727185384250,10.2287219,2642.1,2642.0,0.038]
[1727185384455,10.62605009,2642.1,2642.0,0.038]
[1727185386008,3.78584,2641.5,2640.9,7.03755]
[1727185386212,0.8152,2641.9,2640.9,7.03755]
[1727185386213,3.78552,2641.7,2641.1,3.78621]
[1727185386421,3.7854,2641.8,2641.3,0.7511]
[1727185386712,0.79044976,2641.9,2641.5,3.7857]
[1727185386713,0.55,2641.9,2641.5,3.7857]
[1727185387022,3.78537,2641.8,2641.4,0.03439086]
[1727185387226,3.78546,2641.7,2641.3,0.7511]
[1727185387374,3.78546,2641.7,2641.5,0.03439086]
[1727185387576,3.78546,2641.7,2641.3,0.7511]
[1727185387577,3.78546,2641.7,2641.4,0.03436024]
[1727185387799,0.55,2641.6,2641.3,0.7511]
[1727185388002,0.55,2641.6,2641.5,0.03350829]
[1727185388216,0.55,2641.6,2641.3,0.7511]
[1727185388418,4.3356,2641.6,2641.0,4.53746]
[1727185388575,0.55,2641.6,2641.1,4.489996]
[1727185388781,0.55,2641.6,2641.2,3.78605]
[1727185389176,4.57568976,2641.9,2641.3,7.57186]
[1727185389377,0.55,2641.8,2641.4,4.53685]
[1727185389583,3.78502,2642.0,2641.6,3.78548]
[1727185389779,3.78525,2641.9,2641.4,5.747741]
[1727185390010,3.78499,2642.1,2641.6,3.78558]
[1727185391414,3.78502,2642.0,2641.4,4.53687]
[1727185391601,3.78502,2642.0,2641.4,1.204787]
[1727185391602,3.78536,2641.8,2641.4,1.204787]
[1727185391822,3.78589,2641.4,2641.1,0.7511]
[1727185392003,3.88025719,2641.6,2641.1,0.7511]
[1727185392208,3.88025719,2641.6,2641.1,1.16631943]
[1727185392525,3.78579,2641.5,2641.1,0.7511]
[1727185392695,3.78587,2641.4,2641.1,0.7511]
[1727185392889,0.09464766,2641.3,2641.1,0.7511]
[1727185393092,0.09464766,2641.3,2640.8,3.78662]
[1727185393292,0.09464766,2641.3,2640.8,4.53772]
[1727185393583,3.78631,2641.1,2640.8,0.7511]
[1727185393788,4.39310495,2641.0,2640.3,0.7511]
[1727185394091,4.39310495,2641.0,2640.3,4.53845]
[1727185394422,5.08888976,2641.0,2640.3,4.53845]
[1727185394718,5.08888976,2641.0,2640.0,0.0380303]
[1727185394719,8.11364,2641.0,2640.0,0.0380303]
[1727185395495,10.09312389,2641.0,2640.0,3.8258203]
[1727185395697,11.63690815,2641.0,2640.0,3.8258203]
[1727185396426,11.63690815,2641.0,2640.1,3.78773]
[1727185396632,11.24091089,2641.0,2640.1,3.78773]
[1727185397606,11.24091089,2641.0,2640.4,0.7511]
[1727185397811,0.512,2641.0,2640.4,4.53839]
[1727185397996,5.09008606,2641.0,2640.4,0.7511]
[1727185398397,5.48594762,2641.0,2640.4,0.7511]
[1727185400022,4.29844,2641.0,2640.4,0.7511]
[1727185400182,5.09033509,2641.0,2640.4,0.7511]
[1727185400382,1.30400307,2641.0,2640.5,3.78716]
[1727185400596,4.57831307,2641.1,2640.6,3.78699]
[1727185400825,3.78631,2641.1,2640.9,2.75]
[1727185400998,3.78631,2641.1,2640.9,2.5]
[1727185401398,7.57268,2641.1,2640.9,2.5]
[1727185401726,3.78644,2641.0,2640.9,2.5]
[1727185402091,5.22310887,2641.0,2640.9,2.5]
[1727185402389,6.54364027,2641.0,2640.9,2.5]
[1727185402721,6.93963753,2641.0,2640.9,2.5]
[1727185402888,7.03430942,2641.0,2640.9,2.5]
[1727185403091,6.93963753,2641.0,2640.9,2.5]
[1727185403533,6.54427749,2641.0,2640.9,2.5]
[1727185403691,6.54427801,2641.0,2640.9,2.5]
[1727185403892,5.35613265,2641.0,2640.9,2.5]
[1727185404086,6.54428292,2641.0,2640.9,2.5]
[1727185404377,7.0343094,2641.0,2640.9,2.5]
[1727185404627,5.35613265,2641.0,2640.9,2.5]
[1727185404821,5.45080452,2641.0,2640.9,2.5]
[1727185405025,7.8495094,2641.0,2640.9,2.5]
[1727185405228,10.8495094,2641.0,2640.9,2.5]
[1727185405431,10.75483753,2641.0,2640.9,2.5]
[1727185405589,10.75510113,2641.0,2640.9,2.5]
[1727185406021,9.17133265,2641.0,2640.9,2.5]
[1727185406536,10.75486777,2641.0,2640.9,2.5]
[1727185407299,9.17133265,2641.0,2640.9,2.5]
[1727185407514,10.35864455,2641.0,2640.9,2.5]
[1727185407716,7.33644,2641.0,2640.9,2.5]
[1727185407928,8.12792256,2641.0,2640.9,2.5]
[1727185408344,3.0,2641.0,2640.9,2.5]
[1727185408543,6.78644,2641.0,2640.9,2.5]
[1727185409429,7.33644,2641.0,2640.9,2.5]
[1727185411111,0.79148256,2641.2,2641.0,0.8199]
[1727185411449,5.36934512,2641.5,2641.0,4.60634]
[1727185411450,4.57729256,2641.5,2641.0,4.60634]
[1727185411634,3.78581,2641.5,2641.1,0.735634]
[1727185411819,3.78588,2641.4,2641.1,0.735634]
[1727185412022,3.78602,2641.3,2641.1,0.735634]
[1727185412331,3.78602,2641.3,2641.0,0.8199]
[1727185412650,0.55,2641.3,2641.0,0.8199]
[1727185412821,4.33588,2641.4,2641.0,0.8199]
[1727185413005,0.55,2641.4,2641.1,0.735645]
[1727185413205,4.33589,2641.4,2641.1,0.735645]
[1727185413526,0.55,2641.4,2641.1,0.735645]
[1727185413910,0.55,2641.4,2641.1,4.521935]
[1727185414251,0.55,2641.4,2641.1,0.735645]
[1727185414440,0.55,2641.4,2641.2,0.5341895]
[1727185414752,3.78582,2641.5,2641.2,0.5341895]
[1727185414753,0.55,2641.5,2641.2,0.5341895]
[1727185414952,4.33576,2641.5,2641.2,0.5341895]
[1727185416408,8.12157,2641.5,2641.2,0.5341895]
[1727185416605,8.1216,2641.5,2641.2,0.5341895]
[1727185416946,4.33576,2641.5,2641.2,0.5341895]
[1727185417159,8.1216,2641.5,2641.2,0.5341895]
[1727185417320,0.55,2641.5,2641.2,0.5341895]
[1727185417710,4.33576,2641.5,2641.2,0.5341895]
[1727185419828,0.55,2641.5,2641.2,0.5341895]
[1727185420235,4.33573,2641.5,2641.2,0.5341895]
[1727185420422,0.55,2641.5,2641.2,0.5341895]
[1727185420624,0.55,2641.5,2641.1,0.735645]
[1727185420814,0.55,2641.5,2641.1,3.78627]
[1727185421019,0.79148256,2641.9,2641.3,3.78594]
[1727185421216,3.78521,2641.9,2641.5,4.60561]
[1727185422314,3.78521,2641.9,2641.5,5.444765]
[1727185422514,0.79148256,2642.1,2641.5,5.444685]
[1727185422718,0.55,2642.1,2641.7,3.78535]
[1727185422956,0.79148256,2642.3,2641.9,4.60498]
[1727185423171,4.57603256,2642.4,2641.9,4.60498]
[1727185423367,3.78466,2642.3,2641.9,0.8199]
[1727185423674,4.57603256,2642.4,2641.9,4.60504]
[1727185423878,4.57603256,2642.4,2642.0,3.78498]
[1727185424031,4.57603256,2642.4,2641.9,4.60504]
[1727185424228,0.55,2642.3,2641.9,8.39009]
[1727185424464,0.79148256,2642.5,2641.9,5.49013934]
[1727185424670,4.57572256,2642.6,2642.1,3.78474]
[1727185424872,4.57572256,2642.6,2642.1,4.71979721]
[1727185425032,4.57571256,2642.6,2642.1,0.93505721]
[1727185425235,3.78432,2642.5,2642.0,3.78497]
[1727185425433,0.79148256,2642.6,2642.1,3.78486]
[1727185425670,3.78421,2642.6,2642.1,4.25290523]
[1727185425838,0.55,2642.5,2642.1,4.25290523]
[1727185426042,0.79148256,2642.8,2642.4,3.7843]
[1727185426281,1.1873119,2643.0,2642.5,1.19783]
[1727185426282,3.78358,2643.0,2642.5,1.19783]
[1727185426475,3.8216003,2643.1,2642.5,4.98204]
[1727185426967,3.8215403,2643.1,2642.5,4.98204]
[1727185427178,3.8215403,2643.1,2642.5,1.19783]
[1727185427473,3.78368,2643.0,2642.5,1.19783]
[1727185428167,0.55,2642.9,2642.5,1.19783]
[1727185428477,3.7838,2642.9,2642.5,0.8194]
[1727185428975,3.78403,2642.7,2642.1,0.8194]
[1727185429173,4.33425,2642.6,2642.2,4.0]
[1727185429470,3.78381,2642.9,2642.3,3.78456]
[1727185429775,3.7841,2642.7,2642.2,8.645061]
[1727185430084,3.78445,2642.4,2642.1,0.8194]
[1727185430366,3.78472,2642.2,2641.8,0.8194]
[1727185434140,3.78459,2642.3,2641.8,0.8194]
[1727185434444,3.78459,2642.3,2641.8,1.658409]
[1727185434789,3.78472,2642.2,2641.8,1.658409]
[1727185435087,3.78459,2642.3,2641.8,1.658409]
[1727185436089,7.56929,2642.3,2641.8,1.658409]
[1727185436988,3.78459,2642.3,2641.8,1.658409]
[1727185437194,3.78459,2642.3,2641.9,4.3295129]
[1727185437391,3.78472,2642.2,2641.9,0.5443729]
[1727185437690,3.78459,2642.3,2641.8,4.60468]
[1727185437865,3.78459,2642.3,2641.9,3.78514]
[1727185438069,3.78459,2642.3,2641.8,4.60468]
[1727185438764,7.56925,2642.3,2641.8,4.60468]
[1727185438964,6.93662672,2642.7,2641.8,4.60468]
[1727185439205,3.78465,2642.3,2641.8,4.60468]
[1727185440399,3.78438,2642.5,2641.9,3.78512]
[1727185440705,1.20990767,2642.6,2641.8,4.60468]
[1727185440706,3.78415,2642.6,2642.1,0.7883]
[1727185441039,3.8215403,2643.1,2642.4,3.78441]
[1727185441297,3.8215403,2643.1,2642.6,3.78407]
[1727185441497,3.8215403,2643.1,2642.5,4.57253]
[1727185441699,3.8215403,2643.1,2642.6,3.78411]
[1727185442056,7.6050603,2643.1,2642.6,3.78411]
[1727185442295,3.8215403,2643.1,2642.7,3.784]
[1727185442504,3.8215403,2643.1,2642.8,0.7883]
[1727185443003,3.8215403,2643.1,2642.8,4.57209]
[1727185443004,0.0380303,2643.1,2642.8,4.57209]
[1727185443202,0.0380303,2643.1,2642.9,3.78363]
[1727185443721,3.78296,2643.5,2642.8,7.71723416]
[1727185443722,1.00950854,2643.5,2643.0,3.78357]
[1727185443873,4.60696,2643.7,2643.0,7.56702]
[1727185444077,3.78244,2643.8,2643.2,3.78316]
[1727185444263,3.78244,2643.8,2643.3,0.457146]
[1727185444468,3.78244,2643.8,2643.3,3.78314]
[1727185445188,3.78244,2643.8,2643.2,3.78316]
[1727185445391,3.78244,2643.8,2643.2,7.56635]
[1727185445562,0.55,2643.7,2643.2,3.78316]
[1727185445769,0.55,2643.7,2643.1,0.7883]
[1727185446004,4.33267,2643.7,2643.1,4.57165]
[1727185446711,0.55,2643.7,2643.2,3.78319]
[1727185447098,4.33266,2643.7,2643.1,4.57171]
[1727185447807,4.33266,2643.7,2643.1,8.35504]
[1727185448114,0.55,2643.7,2643.2,3.78328]
[1727185448473,0.55,2643.7,2643.3,3.78314]
[1727185448682,0.0380303,2643.9,2643.5,3.78285]
[1727185448908,0.0380303,2643.9,2643.6,0.7883]
[1727185449880,3.8204003,2643.9,2643.6,0.7883]
[1727185450088,0.55,2643.7,2643.3,0.7883]
[1727185450417,3.78271,2643.7,2643.3,0.7883]
[1727185450574,3.78276,2643.6,2643.3,0.7883]
[1727185450769,3.78276,2643.6,2643.0,0.5]
[1727185450770,3.78292,2643.5,2643.0,1.2883]
[1727185450989,0.55,2643.4,2643.0,0.5]
[1727185451215,3.78327,2643.3,2643.0,0.5]
[1727185452524,4.60715,2643.6,2643.0,0.5]
[1727185452690,4.33288,2643.5,2643.0,4.2835]
[1727185454119,4.33288,2643.5,2643.0,0.5]
[1727185454275,8.11585,2643.5,2643.0,0.5]
[1727185454989,3.78303,2643.4,2643.0,0.5]
[1727185456922,3.78316,2643.3,2643.0,0.5]
[1727185457128,3.78303,2643.4,2643.0,0.5]
[1727185457620,0.55,2643.5,2643.0,5.24474385]
[1727185457927,0.55,2643.5,2643.1,4.57165]
[1727185458497,0.55,2643.5,2643.1,0.7883]
[1727185458498,4.33287,2643.5,2643.1,0.7883]
[1727185458735,0.55,2643.5,2643.2,3.78328]
[1727185459096,0.55,2643.5,2643.1,0.7883]
[1727185459310,4.33288,2643.5,2643.1,0.7883]
[1727185460122,3.78318,2643.3,2643.0,0.5]
[1727185460327,1.361546,2643.5,2643.1,3.78343]
[1727185460536,0.55,2643.6,2643.1,3.78343]
[1727185460823,4.333,2643.4,2643.0,0.575663]
[1727185461393,4.333,2643.4,2643.0,1.0904243]
[1727185462008,4.333,2643.4,2643.0,0.5]
[1727185462009,3.78317,2643.3,2643.0,0.5]
[1727185462890,0.55,2643.4,2643.0,4.28356]
[1727185463543,3.7826,2643.7,2643.2,3.78316]
[1727185463888,3.7826,2643.7,2643.1,1.673856]
[1727185464141,7.56528,2643.7,2643.1,1.673856]
[1727185464432,3.7826,2643.7,2643.2,3.78328]
[1727185465230,3.7826,2643.7,2643.2,4.7573416]
[1727185465428,7.56531,2643.7,2643.2,4.7573416]
[1727185465644,3.78287,2643.5,2643.2,0.9740616]
[1727185465935,3.78287,2643.5,2643.0,4.28354]
[1727185466136,4.33287,2643.5,2643.0,4.28354]
[1727185466801,3.78301,2643.4,2643.0,0.5]
[1727185467613,3.78316,2643.3,2643.0,0.5]
[1727185467846,7.56609,2643.4,2643.0,0.5]
[1727185468027,3.78301,2643.4,2643.0,0.5]
[1727185468407,3.78331,2643.2,2643.0,0.5]
[1727185469140,3.78343,2643.1,2643.0,0.5]
[1727185469446,4.33343,2643.1,2643.0,0.5]
[1727185471117,12.93510915,2643.1,2643.0,0.5]
[1727185471361,11.25697416,2643.1,2643.0,0.5]
[1727185472450,13.2358862,2643.1,2643.0,0.5]
[1727185472744,13.03455698,2643.1,2643.0,0.5]
[1727185472948,9.88941282,2643.1,2643.0,0.5]
[1727185473153,11.47245684,2643.1,2643.0,0.5]
[1727185474017,5.11183,2643.1,2643.0,0.5]
[1727185474205,3.78343,2643.1,2643.0,0.5]
[1727185474410,4.57476994,2643.1,2643.0,0.5]
[1727185474947,0.79133994,2643.2,2643.0,0.5]
[1727185475145,1.187108,2643.3,2643.0,0.5]
[1727185475146,0.79133994,2643.3,2643.1,0.7856]
[1727185475323,3.78325,2643.3,2643.1,0.7856]
[1727185476345,0.55,2643.3,2643.1,0.7856]
[1727185476529,0.55,2643.3,2643.1,1.30009849]
[1727185476740,0.55,2643.3,2643.1,0.7856]
[1727185477111,0.79133994,2643.4,2643.1,0.7856]
[1727185477407,0.79133994,2643.5,2643.1,0.7856]
[1727185477610,0.79133994,2643.5,2643.1,4.56897]
[1727185478145,0.79133994,2643.5,2643.2,0.506897]
[1727185478359,0.79133994,2643.7,2643.5,0.7856]
[1727185478642,0.79133994,2643.8,2643.5,0.7856]
[1727185479046,4.57377994,2643.8,2643.5,0.7856]
[1727185479212,0.79133994,2643.7,2643.5,0.7856]
[1727185479406,4.57377994,2643.8,2643.5,1.242472]
[1727185480230,0.79133994,2643.7,2643.5,1.242472]
[1727185480457,0.82937024,2643.9,2643.7,0.7856]
[1727185480662,0.0380303,2643.9,2643.7,4.56817]
[1727185481399,0.0380303,2643.9,2643.8,4.56803]
[1727185481663,0.0380303,2643.9,2643.8,4.64366597]
[1727185481875,0.0380303,2643.9,2643.8,5.4106536]
[1727185482456,0.0380303,2643.9,2643.8,1.6282236]
[1727185482775,0.0380303,2643.9,2643.8,0.7856]
[1727185485289,0.82937024,2643.9,2643.8,0.7856]
[1727185485648,0.0380303,2643.9,2643.8,0.7856]
[1727185486391,0.79133994,2644.0,2643.9,0.0619697]
[1727185486392,1.3424172,2644.0,2643.9,0.0619697]
[1727185486887,5.519248,2644.0,2643.9,0.0619697]
[1727185487047,4.33214,2644.0,2643.9,0.0619697]
[1727185487246,5.519248,2644.0,2643.9,0.0619697]
[1727185487443,4.33214,2644.0,2643.9,0.0619697]
[1727185488200,5.12449537,2644.0,2643.9,0.0619697]
[1727185488346,0.55,2644.0,2643.9,0.0619697]
[1727185488548,1.34235286,2644.0,2643.9,0.0619697]
[1727185488996,1.34230017,2644.0,2643.9,0.0619697]
[1727185490198,0.79230017,2644.0,2643.9,0.0619697]
[1727185490790,0.79230017,2644.1,2643.9,0.0619697]
[1727185491320,0.79230017,2644.1,2643.9,0.90322667]
[1727185491599,4.57388017,2644.4,2643.9,3.8441897]
[1727185492023,0.79230017,2644.3,2643.9,7.6263997]
[1727185492176,0.79230017,2644.3,2643.9,3.8441797]
[1727185492379,4.57388017,2644.4,2643.9,3.8441797]
[1727185492580,4.57388017,2644.4,2644.0,0.46297797]
[1727185493410,0.79230017,2644.4,2644.0,0.46297797]
[1727185493575,4.57388017,2644.4,2644.0,0.46297797]
[1727185494172,4.57404017,2644.3,2643.9,0.0619697]
[1727185494374,0.79230017,2644.2,2643.9,0.0619697]
[1727185494883,8.750678,2644.3,2643.9,0.0619697]
[1727185494884,4.57430017,2644.1,2643.9,0.0619697]
[1727185495201,3.78214,2644.0,2643.9,0.5619697]
[1727185495580,4.57430017,2644.1,2643.9,0.5619697]
[1727185495911,0.79230017,2644.2,2643.9,0.5619697]
[1727185496229,4.57417017,2644.2,2643.9,0.5619697]
[1727185496714,3.78213,2644.1,2643.9,0.5619697]
[1727185497008,4.57443017,2644.1,2643.9,0.5619697]
[1727185497193,3.78213,2644.1,2643.9,0.5619697]
[1727185497576,3.78214,2644.0,2643.9,0.5619697]
[1727185499242,4.57418017,2644.2,2643.9,1.0619697]
[1727185499415,0.55,2644.1,2643.9,1.0619697]
[1727185500705,3.78201,2644.1,2643.9,1.0619697]
[1727185501256,4.332,2644.1,2643.9,1.0619697]
[1727185501396,5.12694,2644.0,2643.9,1.0619697]
[1727185501595,6.314048,2644.0,2643.9,1.0619697]
[1727185501904,8.27208416,2644.0,2643.9,1.0619697]
[1727185502198,1.58304402,2644.1,2643.9,1.8173697]
[1727185502403,3.78214,2644.0,2643.9,1.0619697]
[1727185502729,5.36830714,2644.0,2643.9,1.0619697]
[1727185503133,4.57694,2644.0,2643.9,1.0619697]
[1727185503433,4.57694,2644.0,2643.9,1.5619697]
[1727185503635,8.20110239,2644.0,2643.9,1.5619697]
[1727185504440,11.34634278,2644.0,2643.9,1.5619697]
[1727185505107,9.76320253,2644.0,2643.9,1.5619697]
[1727185505418,14.67991555,2644.0,2643.9,1.5]
[1727185505742,6.55608867,2644.0,2643.9,1.5]
[1727185505951,6.64802437,2644.0,2643.9,1.5]
[1727185506106,6.25222713,2644.0,2643.9,1.5]
[1727185506416,4.96937679,2644.0,2643.9,1.5]
[1727185506814,0.79143241,2644.0,2643.9,1.5]
[1727185507202,4.57350241,2644.1,2643.9,1.5]
[1727185507400,0.79143241,2644.0,2643.9,1.5]
[1727185507722,4.33214,2644.0,2643.9,2.0]
[1727185507926,5.12357241,2644.0,2643.9,2.0]
[1727185508124,1.34143241,2644.0,2643.9,2.0]
[1727185508298,5.12357241,2644.0,2643.9,2.0]
[1727185508501,5.12364176,2644.0,2643.9,2.0]
[1727185508740,4.33214,2644.0,2643.9,2.0]
[1727185509111,5.51937679,2644.0,2643.9,2.0]
[1727185509315,5.12363501,2644.0,2643.9,2.0]
[1727185510134,0.79149501,2644.0,2643.9,2.0]
[1727185510310,0.79149501,2644.1,2643.9,2.27554]
[1727185511122,4.57350501,2644.1,2643.9,2.27554]
[1727185511444,4.57363501,2644.0,2643.9,2.0]
[1727185511748,0.79149501,2644.0,2643.9,2.5]
[1727185511918,6.31417679,2644.0,2643.9,2.5]
[1727185512133,6.70999407,2644.0,2643.9,2.5]
[1727185512504,11.41671358,2644.0,2643.9,2.5]
[1727185512707,11.81226473,2644.0,2643.9,2.5]
[1727185513007,12.83365951,2644.0,2643.9,2.5]
[1727185513620,11.66767737,2644.0,2643.9,2.5]
[1727185514054,14.81282153,2644.0,2643.9,2.5]
[1727185514260,12.83365951,2644.0,2643.9,2.5]
[1727185515652,14.21846632,2644.0,2643.9,2.5]
[1727185516011,12.83365951,2644.0,2643.9,2.5]
[1727185516211,14.21847363,2644.0,2643.9,2.5]
[1727185516631,16.59387964,2644.0,2643.9,2.5]
[1727185516853,14.21847363,2644.0,2643.9,2.5]
[1727185517564,16.98978064,2644.0,2643.9,2.5]
[1727185518231,14.21847363,2644.0,2643.9,2.5]
[1727185518554,16.98978064,2644.0,2643.9,2.5]
[1727185518855,14.21847363,2644.0,2643.9,2.5]
[1727185520154,16.98978064,2644.0,2643.9,2.5]
[1727185520816,14.21847363,2644.0,2643.9,2.5]
[1727185521342,16.99322959,2644.0,2643.9,2.5]
[1727185521545,14.21847363,2644.0,2643.9,2.5]
[1727185522315,5.71695412,2644.0,2643.9,2.5]
[1727185522514,6.71034177,2644.0,2643.9,2.5]
[1727185522754,8.09515589,2644.0,2643.9,2.5]
[1727185522953,11.24030005,2644.0,2643.9,2.5]
[1727185523532,4.33214,2644.0,2643.9,2.5]
[1727185524452,7.47728416,2644.0,2643.9,2.5]
[1727185525965,4.37014,2644.0,2643.9,2.5]
[1727185526143,6.35191791,2644.0,2643.9,2.5]
[1727185527245,2.56977791,2644.0,2643.9,2.5]
[1727185527572,1.22704604,2644.0,2643.9,2.82675]
[1727185527867,5.00918604,2644.0,2643.9,2.82675]
[1727185528072,5.00918604,2644.0,2643.9,2.5]
[1727185528647,1.22704604,2644.0,2643.9,2.5]
[1727185528843,5.00918604,2644.0,2643.9,2.5]
[1727185529260,1.22704604,2644.0,2643.9,2.5]
[1727185529447,5.55918604,2644.0,2643.9,2.5]
[1727185529777,5.00918604,2644.0,2643.9,2.82675]
[1727185529981,5.00928062,2644.0,2643.9,2.5]
[1727185530149,5.55928062,2644.0,2643.9,2.5]
[1727185530350,5.95558709,2644.0,2643.9,2.5]
[1727185530542,9.49728092,2644.0,2643.9,2.5]
[1727185530732,0.588,2644.0,2643.9,2.5]
[1727185530933,0.588,2644.0,2643.9,2.75]
[1727185531182,1.77716785,2644.0,2643.9,2.75]
[1727185531345,1.22716785,2644.0,2643.9,3.5674]
[1727185532960,0.038,2644.0,2643.9,3.5674]
[1727185533362,0.8307305,2644.0,2643.9,3.5674]
[1727185534100,0.038,2644.0,2643.9,7.34969]
[1727185534605,0.038,2644.0,2643.9,7.42532525]
[1727185534903,0.038,2644.0,2643.9,7.34969]
[1727185535062,0.038,2644.0,2643.9,7.42532196]
[1727185535263,0.038,2644.0,2643.9,10.57046443]
[1727185535466,0.038,2644.0,2643.9,10.49483416]
[1727185535695,0.038,2644.0,2643.9,13.49483416]
[1727185536301,0.038,2644.0,2643.9,17.49483416]
[1727185540309,0.038,2644.0,2643.9,13.49483416]
[1727185540672,0.038,2644.0,2643.9,10.34969]
[1727185542117,0.038,2644.0,2643.9,13.49483416]
[1727185544507,0.038,2644.0,2643.9,10.34969]
[1727185545508,0.038,2644.0,2643.9,14.34969]
[1727185546185,0.038,2644.0,2643.9,10.34969]
[1727185547417,0.038,2644.0,2643.9,13.49483416]
[1727185547733,0.038,2644.0,2643.9,17.49483416]
[1727185550792,0.038,2644.0,2643.9,17.93765538]
[1727185551779,0.038,2644.0,2643.9,13.93765538]
[1727185553413,0.038,2644.0,2643.9,13.85934195]
[1727185553608,0.038,2644.0,2643.9,17.49483416]
[1727185554585,0.038,2644.0,2643.9,13.49483416]
[1727185554829,0.038,2644.0,2643.9,17.49483416]
[1727185555237,0.038,2644.0,2643.9,17.93765538]
[1727185555562,0.0380303,2644.7,2644.6,4.56899]
[1727185555756,0.0380303,2644.7,2644.6,5.47963599]
[1727185556562,0.0380303,2644.7,2644.6,11.62478017]
[1727185556776,0.0380303,2644.7,2644.6,11.99199538]
[1727185557067,0.0380303,2644.7,2644.6,11.54917416]
[1727185559552,0.0380303,2644.7,2644.6,15.54917416]
[1727185560241,0.0380303,2644.7,2644.6,12.40403]
[1727185563140,0.0380303,2644.7,2644.6,27.74791022]
[1727185563344,0.0380303,2645.5,2644.6,27.74791022]
[1727185563345,0.0380303,2645.5,2645.4,6.78014]
[1727185563585,0.0380303,2645.5,2645.4,7.56794]
[1727185564086,0.0380303,2645.5,2645.4,9.09285796]
[1727185564382,0.0380303,2645.5,2645.4,9.01727542]
[1727185565178,0.0380303,2645.5,2645.4,13.01727542]
[1727185568160,0.0380303,2645.5,2645.4,9.23713542]
[1727185568975,0.0380303,2645.5,2645.4,13.01727542]
[1727185569403,0.0380303,2645.5,2645.4,34.21398942]
[1727185569872,0.0380303,2645.5,2645.4,31.48268642]
[1727185571063,0.0380303,2645.5,2645.4,13.01727542]
[1727185571470,0.0380303,2645.5,2645.4,34.66538742]
[1727185571964,0.0380303,2646.3,2645.4,34.66538742]
[1727185571965,0.0380303,2646.3,2645.9,3.77943]
[1727185572197,0.0380303,2646.3,2646.0,3.7878]
[1727185572580,0.0380303,2646.3,2646.0,7.56698]
[1727185572965,0.0380303,2646.3,2646.0,3.7878]
[1727185573185,0.0380303,2646.3,2646.0,7.8258]
[1727185573395,0.0380303,2646.3,2646.1,1.47502742]
[1727185574116,0.0380303,2646.3,2646.1,5.47502742]
[1727185574410,0.0380303,2646.3,2646.2,7.5668]
[1727185574613,0.0380303,2646.3,2646.2,20.3538256]
[1727185574839,0.0380303,2646.3,2646.2,16.4734166]
[1727185575047,0.0380303,2646.3,2646.2,14.21798382]